[Event "German Team Cup Finals 2022"]
[Site "Baden -Baden"]
[Date "2022.07.16"]
[Round "1.2"]
[White "Moussard, Jules"]
[Black "Shirov, Alexei"]
[Result "1/2-1/2"]
[ECO "C50"]
[WhiteElo "2672"]
[BlackElo "2704"]
[Annotator "ChessBase"]
[PlyCount "89"]
[EventDate "2022.07.16"]
[EventType "team-tourn"]
[EventCountry "GER"]
[SourceTitle "playchess.com"]
[Source "ChessBase"]
[SourceQuality "1"]
[TimeControl "5400+30"]

1. e4 {[%emt 0:00:00]} e5 {[%emt 0:00:00]} 2. Nf3 {[%emt 0:00:00]} Nc6 {[%emt 0:00:00]} 3. Bc4 {[%emt 0:00:00]} Bc5 {[%emt 0:00:00]} 4. O-O {[%emt 0:00:00]} Nf6 {[%emt 0:00:00]} 5. d3 {[%emt 0:00:00]} O-O {[%emt 0:00:00]} 6. h3 {[%emt 0:00:00]} h6 {[%emt 0:00:00]} 7. Re1 {[%emt 0:00:00]} Re8 {[%emt 0:00:00]} 8. c3 {[%emt 0:00:00]} d5 {[%emt 0:00:00]} 9. exd5 {[%emt 0:00:00]} Nxd5 {[%emt 0:00:00]} 10. d4 {[%emt 0:01:30]} Nb6 {[%emt 0:00:00]} 11. Bb5 {[%emt 0:41:30]} exd4 {[%emt 0:00:00]} 12. Rxe8+ {[%emt 0:00:30]} Qxe8 {[%emt 0:00:00]} 13. cxd4 {[%emt 0:00:30]} Bd6 {[%emt 0:00:00]} 14. Nc3 {[%emt 0:02:30]} Bd7 {[%emt 0:12:30]} 15. Be3 {[%emt 0:09:30]} Nb4 {[%emt 0:11:30]} 16. Bxd7 {[%emt 0:05:30]} Qxd7 {[%emt 0:01:30]} 17. a3 {[%emt 0:02:30]} N4d5 {[%emt 0:00:30]} 18. Qb3 {[%emt 0:03:30]} Re8 {[%emt 0:08:30]} 19. Nxd5 {[%emt 0:06:30]} Nxd5 {[%emt 0:00:30]} 20. Bd2 {[%emt 0:04:30]} c6 {[%emt 0:07:30]} 21. a4 {[%emt 0:00:30]} Bf4 {[%emt 0:13:30]} 22. Qd3 {[%emt 0:00:30]} Bxd2 {[%emt 0:06:30]} 23. Qxd2 {[%emt 0:00:30]} Qf5 {[%emt 0:00:30]} 24. Re1 {[%emt 0:02:30]} Re4 {[%emt 0:09:30]} 25. Qa5 {[%emt 0:00:30]} Kh7 {[%emt 0:00:30]} 26. b3 {[%emt 0:01:02]} a6 {[%emt 0:05:30]} 27. Qd2 {[%emt 0:01:40]} Nf4 {[%emt 0:06:36]} 28. Rxe4 {[%emt 0:01:09]} Qxe4 {[%emt 0:00:08]} 29. Qe3 {[%emt 0:00:38]} Ne2+ {[%emt 0:02:13]} 30. Kh2 {[%emt 0:02:08]} f5 {[%emt 0:03:14]} 31. g4 {[%emt 0:03:17]} Qxe3 {[%emt 0:07:00]} 32. fxe3 {[%emt 0:00:02]} f4 {[%emt 0:00:07]} 33. exf4 {[%emt 0:01:30]} Nxf4 {[%emt 0:00:04]} 34. Kg3 {[%emt 0:01:29]} g5 {[%emt 0:00:05]} 35. h4 {[%emt 0:00:53]} Kg6 {[%emt 0:00:05]} 36. hxg5 {[%emt 0:01:51]} hxg5 {[%emt 0:00:05]} 37. Ne5+ {[%emt 0:01:29]} Kf6 {[%emt 0:00:08]} 38. Kf3 {[%emt 0:00:18]} Ke6 {[%emt 0:03:14]} 39. Ke4 {[%emt 0:00:16]} Nd5 {[%emt 0:00:41]} 40. Nf3 {[%emt 0:00:13]} Nf6+ {[%emt 0:02:12]} 41. Kd3 {[%emt 0:00:03]} Kd5 {[%emt 0:00:30]} 42. Nxg5 {[%emt 0:00:10]} a5 {[%emt 0:00:46]} 43. Nh3 {[%emt 0:01:00]} Nxg4 {[%emt 0:00:04]} 44. Nf4+ {[%emt 0:00:07]} Kd6 {[%emt 0:00:07]} 45. Ke4 {[%emt 0:00:41]} 1/2-1/2

[Event "German Team Cup Finals 2022"]
[Site "Baden -Baden"]
[Date "2022.07.16"]
[Round "1.4"]
[White "Meier, Georg"]
[Black "Graf, Alexander"]
[Result "1-0"]
[ECO "D02"]
[WhiteElo "2613"]
[BlackElo "2562"]
[Annotator "ChessBase"]
[PlyCount "101"]
[EventDate "2022.07.16"]
[EventType "team-tourn"]
[EventCountry "GER"]
[SourceTitle "playchess.com"]
[Source "ChessBase"]
[SourceQuality "1"]
[TimeControl "5400+30"]

1. Nf3 {[%emt 0:00:00]} d5 {[%emt 0:00:00]} 2. g3 {[%emt 0:00:00]} Nd7 {[%emt 0:00:00]} 3. d4 {[%emt 0:00:00]} Nb6 {[%emt 0:00:00]} 4. a4 {[%emt 0:00:00]} a5 {[%emt 0:00:00]} 5. b3 {[%emt 0:00:00]} Nf6 {[%emt 0:00:00]} 6. Ba3 {[%emt 0:00:00]} g6 {[%emt 0:00:00]} 7. Bg2 {[%emt 0:00:00]} Bg7 {[%emt 0:00:00]} 8. Nbd2 {[%emt 0:00:00]} O-O {[%emt 0:00:00]} 9. e3 {[%emt 0:00:00]} Bf5 {[%emt 0:07:00]} 10. c4 {[%emt 0:10:30]} c6 {[%emt 0:05:30]} 11. Rc1 {[%emt 0:08:30]} Re8 {[%emt 0:00:30]} 12. O-O {[%emt 0:04:30]} Ne4 {[%emt 0:03:30]} 13. cxd5 {[%emt 0:02:30]} Nxd5 {[%emt 0:07:30]} 14. Nxe4 {[%emt 0:04:30]} Bxe4 {[%emt 0:00:30]} 15. Bh3 {[%emt 0:00:30]} e6 {[%emt 0:10:30]} 16. Ne5 {[%emt 0:09:30]} Qg5 {[%emt 0:31:30]} 17. Nc4 {[%emt 0:06:30]} Qh6 {[%emt 0:01:30]} 18. Bg2 {[%emt 0:03:30]} Bxg2 {[%emt 0:04:30]} 19. Kxg2 {[%emt 0:00:00]} Red8 {[%emt 0:00:30]} 20. Qe1 {[%emt 0:06:00]} b6 {[%emt 0:09:59]} 21. e4 {[%emt 0:03:30]} Nb4 {[%emt 0:01:08]} 22. Bxb4 {[%emt 0:03:30]} axb4 {[%emt 0:00:08]} 23. Nxb6 {[%emt 0:00:30]} Ra6 {[%emt 0:06:45]} 24. Rxc6 {[%emt 0:01:30]} Bxd4 {[%emt 0:02:20]} 25. Qxb4 {[%emt 0:02:30]} Qh5 {[%emt 0:00:32]} 26. Qe7 {[%emt 0:20:02]} Rb8 {[%emt 0:01:05]} 27. Qd6 {[%emt 0:01:15]} Qe5 {[%emt 0:06:59]} 28. Rc8+ {[%emt 0:02:16]} Rxc8 {[%emt 0:00:31]} 29. Qxe5 {[%emt 0:00:06]} Bxe5 {[%emt 0:00:55]} 30. Nxc8 {[%emt 0:00:05]} Kf8 {[%emt 0:01:01]} 31. f4 {[%emt 0:01:35]} Bd4 {[%emt 0:00:20]} 32. Rd1 {[%emt 0:04:51]} e5 {[%emt 0:00:02]} 33. fxe5 {[%emt 0:00:07]} Bxe5 {[%emt 0:00:00]} 34. Rd5 {[%emt 0:01:22]} f6 {[%emt 0:00:36]} 35. Rc5 {[%emt 0:02:33]} Ke8 {[%emt 0:01:16]} 36. a5 {[%emt 0:00:21]} Bd4 {[%emt 0:00:42]} 37. Rd5 {[%emt 0:00:42]} Be5 {[%emt 0:00:20]} 38. Nb6 {[%emt 0:00:31]} Bc7 {[%emt 0:00:34]} 39. Nc4 {[%emt 0:00:28]} Ke7 {[%emt 0:00:01]} 40. g4 {[%emt 0:02:10]} Ra8 {[%emt 0:00:41]} 41. b4 {[%emt 0:00:00]} Bd8 {[%emt 0:00:00]} 42. Rc5 {[%emt 0:00:00]} Ra7 {[%emt 0:00:00]} 43. Kf3 {[%emt 0:00:00]} Rd7 {[%emt 0:00:00]} 44. a6 {[%emt 0:00:00]} Ra7 {[%emt 0:00:00]} 45. b5 {[%emt 0:00:00]} Ra8 {[%emt 0:00:00]} 46. Rc6 {[%emt 0:00:00]} Ra7 {[%emt 0:00:00]} 47. Nb6 {[%emt 0:00:00]} Kf7 {[%emt 0:00:00]} 48. Nc8 {[%emt 0:00:00]} Ra8 {[%emt 0:00:00]} 49. a7 {[%emt 0:00:00]} Ke8 {[%emt 0:00:00]} 50. b6 {[%emt 0:00:00]} Bxb6 {[%emt 0:00:00]} 51. Rxb6 {[%emt 0:00:00]} 1-0

[Event "German Team Cup Finals 2022"]
[Site "Baden -Baden"]
[Date "2022.07.16"]
[Round "1.5"]
[White "Kryvoruchko, Yuriy"]
[Black "Ivic, Velimir"]
[Result "1/2-1/2"]
[ECO "B30"]
[WhiteElo "2672"]
[BlackElo "2581"]
[Annotator "ChessBase"]
[PlyCount "53"]
[EventDate "2022.07.16"]
[EventType "team-tourn"]
[EventCountry "GER"]
[SourceTitle "playchess.com"]
[Source "ChessBase"]
[SourceQuality "1"]
[TimeControl "5400+30"]

1. e4 {[%emt 0:00:00]} c5 {[%emt 0:00:00]} 2. Nf3 {[%emt 0:00:00]} Nc6 {[%emt 0:00:00]} 3. Bb5 {[%emt 0:00:00]} e6 {[%emt 0:00:00]} 4. O-O {[%emt 0:00:00]} Nd4 {[%emt 0:00:00]} 5. Nxd4 {[%emt 0:00:00]} cxd4 {[%emt 0:00:00]} 6. c3 {[%emt 0:00:00]} a6 {[%emt 0:00:00]} 7. Be2 {[%emt 0:00:00]} Bc5 {[%emt 0:00:00]} 8. d3 {[%emt 0:01:30]} Ne7 {[%emt 0:00:00]} 9. Nd2 {[%emt 0:10:30]} Nc6 {[%emt 0:00:00]} 10. Nb3 {[%emt 0:02:30]} Ba7 {[%emt 0:00:00]} 11. cxd4 {[%emt 0:10:30]} Nxd4 {[%emt 0:00:00]} 12. Be3 {[%emt 0:00:30]} Nxb3 {[%emt 0:00:00]} 13. Qxb3 {[%emt 0:00:30]} Bxe3 {[%emt 0:00:00]} 14. fxe3 {[%emt 0:00:30]} O-O {[%emt 0:00:00]} 15. a4 {[%emt 0:20:30]} b6 {[%emt 0:06:00]} 16. d4 {[%emt 0:14:30]} Bb7 {[%emt 0:03:30]} 17. Bf3 {[%emt 0:00:30]} b5 {[%emt 0:13:30]} 18. axb5 {[%emt 0:04:30]} Qb6 {[%emt 0:07:30]} 19. Qb4 {[%emt 0:01:30]} axb5 {[%emt 0:18:30]} 20. Rxa8 {[%emt 0:01:30]} Bxa8 {[%emt 0:00:30]} 21. e5 {[%emt 0:11:30]} Bxf3 {[%emt 0:02:30]} 22. Rxf3 {[%emt 0:00:30]} Qc6 {[%emt 0:01:30]} 23. h3 {[%emt 0:00:30]} Qc4 {[%emt 0:02:30]} 24. Qxc4 {[%emt 0:06:24]} bxc4 {[%emt 0:00:00]} 25. Rf2 {[%emt 0:00:06]} Rb8 {[%emt 0:01:00]} 26. Rc2 {[%emt 0:00:05]} Kf8 {[%emt 0:04:30]} 27. Rxc4 {[%emt 0:02:41]} 1/2-1/2

[Event "German Team Cup Finals 2022"]
[Site "Baden -Baden"]
[Date "2022.07.16"]
[Round "1.6"]
[White "Brkic, Ante"]
[Black "Fedorchuk, Sergey A."]
[Result "1-0"]
[ECO "B46"]
[WhiteElo "2611"]
[BlackElo "2612"]
[Annotator "ChessBase"]
[PlyCount "93"]
[EventDate "2022.07.16"]
[EventType "team-tourn"]
[EventCountry "GER"]
[SourceTitle "playchess.com"]
[Source "ChessBase"]
[SourceQuality "1"]
[TimeControl "5400+30"]

1. e4 {[%emt 0:00:00]} c5 {[%emt 0:00:00]} 2. Nf3 {[%emt 0:00:00]} e6 {[%emt 0:00:00]} 3. d4 {[%emt 0:00:00]} cxd4 {[%emt 0:00:00]} 4. Nxd4 {[%emt 0:00:00]} Nc6 {[%emt 0:00:00]} 5. Nc3 {[%emt 0:00:00]} a6 {[%emt 0:00:00]} 6. Bf4 {[%emt 0:00:00]} d6 {[%emt 0:12:30]} 7. Nxc6 {[%emt 0:00:00]} bxc6 {[%emt 0:00:30]} 8. Qd2 {[%emt 0:00:00]} e5 {[%emt 0:12:30]} 9. Bg3 {[%emt 0:00:00]} Nf6 {[%emt 0:05:30]} 10. O-O-O {[%emt 0:00:00]} Be7 {[%emt 0:01:30]} 11. Bc4 {[%emt 0:02:00]} O-O {[%emt 0:01:30]} 12. Bh4 {[%emt 0:00:30]} Be6 {[%emt 0:13:30]} 13. Bb3 {[%emt 0:00:30]} a5 {[%emt 0:05:30]} 14. Bxf6 {[%emt 0:11:30]} gxf6 {[%emt 0:00:30]} 15. f4 {[%emt 0:02:30]} Rb8 {[%emt 0:10:30]} 16. Rhf1 {[%emt 0:10:30]} Kh8 {[%emt 0:01:30]} 17. Qe2 {[%emt 0:09:30]} Rg8 {[%emt 0:06:30]} 18. Rd3 {[%emt 0:29:30]} Rg7 {[%emt 0:02:30]} 19. f5 {[%emt 0:06:30]} Bxb3 {[%emt 0:01:30]} 20. cxb3 {[%emt 0:00:00]} Rb4 {[%emt 0:00:30]} 21. Rfd1 {[%emt 0:02:00]} Qb6 {[%emt 0:06:29]} 22. Kb1 {[%emt 0:00:30]} Qb7 {[%emt 0:01:32]} 23. Qd2 {[%emt 0:06:30]} Qb8 {[%emt 0:01:59]} 24. Qc2 {[%emt 0:00:56]} Rg8 {[%emt 0:01:00]} 25. Qe2 {[%emt 0:04:04]} Qb7 {[%emt 0:04:34]} 26. Na4 {[%emt 0:03:09]} Qb5 {[%emt 0:02:20]} 27. Qc2 {[%emt 0:01:19]} Qb7 {[%emt 0:02:49]} 28. a3 {[%emt 0:06:49]} Rb5 {[%emt 0:01:40]} 29. Rc3 {[%emt 0:01:04]} Rb8 {[%emt 0:04:06]} 30. Rdd3 {[%emt 0:00:02]} Rc8 {[%emt 0:01:46]} 31. Rg3 {[%emt 0:01:57]} Bf8 {[%emt 0:00:14]} 32. Qd1 {[%emt 0:01:12]} c5 {[%emt 0:00:45]} 33. Qg4 {[%emt 0:02:11]} Bh6 {[%emt 0:00:18]} 34. Ka2 {[%emt 0:01:50]} Rb8 {[%emt 0:00:44]} 35. Qe2 {[%emt 0:00:41]} Bf4 {[%emt 0:00:38]} 36. Qg4 {[%emt 0:00:38]} Bh6 {[%emt 0:00:01]} 37. Qe2 {[%emt 0:00:26]} Bf4 {[%emt 0:00:05]} 38. Rgd3 {[%emt 0:00:16]} Qc6 {[%emt 0:01:00]} 39. Rd5 {[%emt 0:00:13]} R5b7 {[%emt 0:00:52]} 40. Qd1 {[%emt 0:00:58]} Kg7 {[%emt 0:00:00]} 41. Rxd6 {[%emt 0:00:00]} Qxe4 {[%emt 0:00:00]} 42. Qg4+ {[%emt 0:00:00]} Kf8 {[%emt 0:00:00]} 43. Nxc5 {[%emt 0:00:00]} Rxb3 {[%emt 0:00:00]} 44. Rxb3 {[%emt 0:00:00]} Qc4 {[%emt 0:00:00]} 45. Nd7+ {[%emt 0:00:00]} Ke7 {[%emt 0:00:00]} 46. Nxb8 {[%emt 0:00:00]} Kxd6 {[%emt 0:00:00]} 47. Qd1+ {[%emt 0:00:00]} 1-0

[Event "German Team Cup Finals 2022"]
[Site "Baden -Baden"]
[Date "2022.07.16"]
[Round "1.7"]
[White "Jovanovic, Zoran"]
[Black "Wagner, Dennis"]
[Result "1/2-1/2"]
[ECO "C77"]
[WhiteElo "2521"]
[BlackElo "2569"]
[Annotator "ChessBase"]
[PlyCount "38"]
[EventDate "2022.07.16"]
[EventType "team-tourn"]
[EventCountry "GER"]
[SourceTitle "playchess.com"]
[Source "ChessBase"]
[SourceQuality "1"]
[TimeControl "5400+30"]

1. e4 {[%emt 0:00:00]} e5 {[%emt 0:00:00]} 2. Nf3 {[%emt 0:00:00]} Nc6 {[%emt 0:00:00]} 3. Bb5 {[%emt 0:00:00]} a6 {[%emt 0:00:00]} 4. Ba4 {[%emt 0:00:00]} Nf6 {[%emt 0:00:00]} 5. Nc3 {[%emt 0:00:00]} Bc5 {[%emt 0:00:00]} 6. Bxc6 {[%emt 0:00:00]} dxc6 {[%emt 0:00:00]} 7. d3 {[%emt 0:00:00]} Qe7 {[%emt 0:00:00]} 8. Be3 {[%emt 0:01:30]} Bg4 {[%emt 0:00:30]} 9. h3 {[%emt 0:04:30]} Bh5 {[%emt 0:00:30]} 10. Bxc5 {[%emt 0:13:30]} Qxc5 {[%emt 0:01:30]} 11. Qe2 {[%emt 0:00:00]} O-O-O {[%emt 0:20:30]} 12. Qe3 {[%emt 0:03:00]} Qxe3+ {[%emt 0:09:30]} 13. fxe3 {[%emt 0:00:30]} Bxf3 {[%emt 0:02:30]} 14. gxf3 {[%emt 0:00:30]} Nh5 {[%emt 0:03:30]} 15. Rg1 {[%emt 0:08:30]} Rd6 {[%emt 0:06:30]} 16. Ne2 {[%emt 0:04:30]} Rh6 {[%emt 0:15:30]} 17. Kf2 {[%emt 0:17:30]} c5 {[%emt 0:16:30]} 18. Rg4 {[%emt 0:06:30]} Re8 {[%emt 0:15:09]} 19. Ng3 {[%emt 0:13:30]} Nxg3 {[%emt 0:00:46]} 1/2-1/2

[Event "German Team Cup Finals 2022"]
[Site "Baden -Baden"]
[Date "2022.07.16"]
[Round "1.8"]
[White "Zaragatski, Ilja"]
[Black "Stevic, Hrvoje"]
[Result "1/2-1/2"]
[ECO "D27"]
[WhiteElo "2512"]
[BlackElo "2563"]
[Annotator "ChessBase"]
[PlyCount "56"]
[EventDate "2022.07.16"]
[EventType "team-tourn"]
[EventCountry "GER"]
[SourceTitle "playchess.com"]
[Source "ChessBase"]
[SourceQuality "1"]
[TimeControl "5400+30"]

1. d4 {[%emt 0:00:00]} d5 {[%emt 0:00:00]} 2. Nf3 {[%emt 0:00:00]} Nf6 {[%emt 0:00:00]} 3. c4 {[%emt 0:00:00]} dxc4 {[%emt 0:00:00]} 4. e3 {[%emt 0:00:00]} e6 {[%emt 0:00:00]} 5. Bxc4 {[%emt 0:00:00]} c5 {[%emt 0:00:00]} 6. O-O {[%emt 0:00:00]} a6 {[%emt 0:00:00]} 7. dxc5 {[%emt 0:00:00]} Bxc5 {[%emt 0:00:00]} 8. Qxd8+ {[%emt 0:00:00]} Kxd8 {[%emt 0:00:00]} 9. Nc3 {[%emt 0:00:00]} b5 {[%emt 0:00:00]} 10. Be2 {[%emt 0:00:00]} Bb7 {[%emt 0:00:00]} 11. Nd2 {[%emt 0:00:00]} Ke7 {[%emt 0:00:00]} 12. Nb3 {[%emt 0:00:00]} Nbd7 {[%emt 0:01:30]} 13. Nxc5 {[%emt 0:00:00]} Nxc5 {[%emt 0:00:30]} 14. b4 {[%emt 0:00:00]} Nce4 {[%emt 0:00:30]} 15. Nxe4 {[%emt 0:00:00]} Nxe4 {[%emt 0:00:30]} 16. Bb2 {[%emt 0:00:00]} Rac8 {[%emt 0:09:30]} 17. Rfc1 {[%emt 0:12:00]} Rhd8 {[%emt 0:03:30]} 18. Bd4 {[%emt 0:31:30]} f6 {[%emt 0:04:30]} 19. f3 {[%emt 0:03:30]} e5 {[%emt 0:02:30]} 20. Bb6 {[%emt 0:03:30]} Rd6 {[%emt 0:11:30]} 21. Ba7 {[%emt 0:10:30]} Ra8 {[%emt 0:16:30]} 22. Rc7+ {[%emt 0:02:30]} Rd7 {[%emt 0:00:30]} 23. Rxd7+ {[%emt 0:00:30]} Kxd7 {[%emt 0:00:30]} 24. Bb6 {[%emt 0:04:30]} Nc3 {[%emt 0:01:30]} 25. Bd1 {[%emt 0:11:30]} Nxd1 {[%emt 0:26:30]} 26. Rxd1+ {[%emt 0:00:30]} Ke8 {[%emt 0:00:00]} 27. Rc1 {[%emt 0:03:30]} Rc8 {[%emt 0:00:00]} 28. Rxc8+ {[%emt 0:00:30]} Bxc8 {[%emt 0:00:30]} 1/2-1/2

[Event "German Team Cup Finals 2022"]
[Site "Baden -Baden"]
[Date "2022.07.17"]
[Round "2.1"]
[White "Ivic, Velimir"]
[Black "Shirov, Alexei"]
[Result "1/2-1/2"]
[ECO "C85"]
[WhiteElo "2581"]
[BlackElo "2704"]
[Annotator "ChessBase"]
[PlyCount "52"]
[EventDate "2022.07.16"]
[EventType "team-tourn"]
[EventCountry "GER"]
[SourceTitle "playchess.com"]
[Source "ChessBase"]
[SourceQuality "1"]
[TimeControl "5400+30"]

1. e4 {[%emt 0:00:00]} e5 {[%emt 0:00:00]} 2. Nf3 {[%emt 0:00:00]} Nc6 {[%emt 0:00:00]} 3. Bb5 {[%emt 0:00:00]} a6 {[%emt 0:00:00]} 4. Ba4 {[%emt 0:00:00]} Nf6 {[%emt 0:00:00]} 5. O-O {[%emt 0:00:00]} Be7 {[%emt 0:00:00]} 6. Bxc6 {[%emt 0:00:00]} dxc6 {[%emt 0:00:00]} 7. d3 {[%emt 0:00:00]} Nd7 {[%emt 0:00:00]} 8. Nc3 {[%emt 0:00:00]} O-O {[%emt 0:00:00]} 9. Be3 {[%emt 0:00:00]} Re8 {[%emt 0:00:00]} 10. a4 {[%emt 0:00:00]} a5 {[%emt 0:14:30]} 11. Ne2 {[%emt 0:00:00]} Bf6 {[%emt 0:00:30]} 12. Ng3 {[%emt 0:03:30]} Nf8 {[%emt 0:02:30]} 13. h3 {[%emt 0:01:30]} b6 {[%emt 0:04:30]} 14. Nh5 {[%emt 0:03:30]} c5 {[%emt 0:00:30]} 15. b3 {[%emt 0:01:30]} Ne6 {[%emt 0:03:30]} 16. Qd2 {[%emt 0:05:30]} g6 {[%emt 0:10:30]} 17. Nxf6+ {[%emt 0:00:30]} Qxf6 {[%emt 0:00:00]} 18. Rae1 {[%emt 0:10:30]} Bd7 {[%emt 0:05:00]} 19. Nh2 {[%emt 0:15:30]} Nf4 {[%emt 0:01:30]} 20. Kh1 {[%emt 0:02:30]} g5 {[%emt 0:05:30]} 21. Qd1 {[%emt 0:04:30]} Qg7 {[%emt 0:05:30]} 22. f3 {[%emt 0:07:30]} h5 {[%emt 0:01:30]} 23. Rf2 {[%emt 0:01:30]} Rad8 {[%emt 0:02:30]} 24. Rd2 {[%emt 0:03:30]} Be6 {[%emt 0:05:30]} 25. Rf1 {[%emt 0:09:30]} Rd6 {[%emt 0:00:30]} 26. Qe1 {[%emt 0:00:00]} h4 {[%emt 0:03:30]} 1/2-1/2

[Event "German Team Cup Finals 2022"]
[Site "Baden -Baden"]
[Date "2022.07.17"]
[Round "2.2"]
[White "Adams, Michael"]
[Black "Brkic, Ante"]
[Result "1/2-1/2"]
[ECO "B90"]
[WhiteElo "2696"]
[BlackElo "2611"]
[Annotator "ChessBase"]
[PlyCount "84"]
[EventDate "2022.07.16"]
[EventType "team-tourn"]
[EventCountry "GER"]
[SourceTitle "playchess.com"]
[Source "ChessBase"]
[SourceQuality "1"]
[TimeControl "5400+30"]

1. e4 {[%emt 0:00:00]} c5 {[%emt 0:00:00]} 2. Nf3 {[%emt 0:00:00]} d6 {[%emt 0:00:00]} 3. d4 {[%emt 0:00:00]} cxd4 {[%emt 0:00:00]} 4. Nxd4 {[%emt 0:00:00]} Nf6 {[%emt 0:00:00]} 5. Nc3 {[%emt 0:00:00]} a6 {[%emt 0:00:00]} 6. Bd3 {[%emt 0:00:00]} e5 {[%emt 0:00:00]} 7. Nde2 {[%emt 0:00:00]} Be7 {[%emt 0:00:00]} 8. O-O {[%emt 0:00:00]} Be6 {[%emt 0:00:00]} 9. f4 {[%emt 0:00:00]} exf4 {[%emt 0:00:00]} 10. Nxf4 {[%emt 0:00:00]} Nc6 {[%emt 0:00:00]} 11. Nxe6 {[%emt 0:04:00]} fxe6 {[%emt 0:00:00]} 12. Bc4 {[%emt 0:01:30]} Qd7 {[%emt 0:00:00]} 13. a4 {[%emt 0:09:30]} Rc8 {[%emt 0:23:00]} 14. Ba2 {[%emt 0:00:30]} O-O {[%emt 0:15:30]} 15. Bf4 {[%emt 0:02:30]} Kh8 {[%emt 0:06:30]} 16. Qe2 {[%emt 0:03:30]} Bd8 {[%emt 0:04:30]} 17. Rad1 {[%emt 0:05:30]} Bb6+ {[%emt 0:00:30]} 18. Kh1 {[%emt 0:03:30]} Bd4 {[%emt 0:01:30]} 19. h3 {[%emt 0:02:30]} Qe7 {[%emt 0:03:30]} 20. Bb3 {[%emt 0:07:30]} Be5 {[%emt 0:15:30]} 21. Qe3 {[%emt 0:12:30]} Nd4 {[%emt 0:04:30]} 22. Bg5 {[%emt 0:10:30]} h6 {[%emt 0:05:30]} 23. Bh4 {[%emt 0:01:30]} Nxb3 {[%emt 0:01:30]} 24. cxb3 {[%emt 0:00:00]} Qc7 {[%emt 0:00:39]} 25. Bg3 {[%emt 0:02:00]} d5 {[%emt 0:02:24]} 26. Bxe5 {[%emt 0:10:30]} Qxe5 {[%emt 0:00:35]} 27. Rfe1 {[%emt 0:00:30]} Nxe4 {[%emt 0:13:31]} 28. Nxe4 {[%emt 0:00:30]} dxe4 {[%emt 0:00:06]} 29. Rd2 {[%emt 0:13:13]} Rf4 {[%emt 0:00:52]} 30. Rd4 {[%emt 0:02:28]} Rcf8 {[%emt 0:02:13]} 31. Kg1 {[%emt 0:00:10]} Rf2 {[%emt 0:02:13]} 32. Rxe4 {[%emt 0:03:05]} Qxb2 {[%emt 0:00:05]} 33. Rg4 {[%emt 0:00:41]} R8f6 {[%emt 0:00:57]} 34. Rd1 {[%emt 0:02:13]} Qc2 {[%emt 0:01:06]} 35. Rd8+ {[%emt 0:01:13]} Kh7 {[%emt 0:00:36]} 36. Rd7 {[%emt 0:00:51]} Rf7 {[%emt 0:00:17]} 37. Rxf7 {[%emt 0:00:39]} Rxf7 {[%emt 0:00:07]} 38. Qxe6 {[%emt 0:00:49]} Qc1+ {[%emt 0:00:56]} 39. Kh2 {[%emt 0:00:01]} Qc7+ {[%emt 0:00:05]} 40. Kg1 {[%emt 0:01:13]} Qc1+ {[%emt 0:00:45]} 41. Kh2 {[%emt 0:00:01]} Qc7+ {[%emt 0:00:00]} 42. Kg1 {[%emt 0:00:00]} Qc1+ {[%emt 0:00:00]} 1/2-1/2

[Event "German Team Cup Finals 2022"]
[Site "Baden -Baden"]
[Date "2022.07.17"]
[Round "2.3"]
[White "Movsesian, Sergei"]
[Black "Jovanovic, Zoran"]
[Result "1-0"]
[ECO "B00"]
[WhiteElo "2618"]
[BlackElo "2521"]
[Annotator "ChessBase"]
[PlyCount "87"]
[EventDate "2022.07.16"]
[EventType "team-tourn"]
[EventCountry "GER"]
[SourceTitle "playchess.com"]
[Source "ChessBase"]
[SourceQuality "1"]
[TimeControl "5400+30"]

1. e4 {[%emt 0:00:00]} Nc6 {[%emt 0:00:00]} 2. Nf3 {[%emt 0:00:00]} d6 {[%emt 0:00:00]} 3. d4 {[%emt 0:00:00]} Nf6 {[%emt 0:00:00]} 4. Nc3 {[%emt 0:00:00]} g6 {[%emt 0:00:00]} 5. h3 {[%emt 0:00:00]} Bg7 {[%emt 0:00:00]} 6. Bg5 {[%emt 0:00:00]} h6 {[%emt 0:05:30]} 7. Be3 {[%emt 0:00:00]} a6 {[%emt 0:04:30]} 8. Qd2 {[%emt 0:03:30]} b5 {[%emt 0:15:30]} 9. Bd3 {[%emt 0:02:30]} e5 {[%emt 0:07:30]} 10. dxe5 {[%emt 0:04:30]} dxe5 {[%emt 0:04:30]} 11. Rd1 {[%emt 0:07:30]} Be6 {[%emt 0:07:30]} 12. O-O {[%emt 0:04:30]} g5 {[%emt 0:06:30]} 13. Nxb5 {[%emt 0:09:30]} axb5 {[%emt 0:05:30]} 14. Bxb5 {[%emt 0:16:30]} Qxd2 {[%emt 0:08:30]} 15. Rxd2 {[%emt 0:01:30]} Bd7 {[%emt 0:01:30]} 16. Rxd7 {[%emt 0:01:30]} Nxd7 {[%emt 0:02:30]} 17. Bxc6 {[%emt 0:00:00]} Ra6 {[%emt 0:00:30]} 18. Bb5 {[%emt 0:03:00]} Rg6 {[%emt 0:03:30]} 19. a4 {[%emt 0:06:30]} c6 {[%emt 0:01:30]} 20. Bc4 {[%emt 0:00:30]} Ke7 {[%emt 0:02:30]} 21. b4 {[%emt 0:03:30]} Ra8 {[%emt 0:01:30]} 22. a5 {[%emt 0:01:30]} Bf6 {[%emt 0:00:30]} 23. Nh2 {[%emt 0:06:30]} Rgg8 {[%emt 0:01:30]} 24. Ra1 {[%emt 0:02:30]} h5 {[%emt 0:02:43]} 25. Be2 {[%emt 0:01:30]} g4 {[%emt 0:02:45]} 26. hxg4 {[%emt 0:00:30]} Bg5 {[%emt 0:00:01]} 27. Bxg5+ {[%emt 0:04:30]} Rxg5 {[%emt 0:00:02]} 28. gxh5 {[%emt 0:01:30]} Nf6 {[%emt 0:00:40]} 29. Nf1 {[%emt 0:00:30]} Nxe4 {[%emt 0:04:22]} 30. Bf3 {[%emt 0:01:30]} Nc3 {[%emt 0:00:33]} 31. Ng3 {[%emt 0:02:03]} Kd7 {[%emt 0:02:34]} 32. Ra3 {[%emt 0:02:43]} Nb5 {[%emt 0:00:06]} 33. Rd3+ {[%emt 0:00:06]} Kc7 {[%emt 0:00:07]} 34. Ne4 {[%emt 0:01:16]} Rgg8 {[%emt 0:00:36]} 35. Nf6 {[%emt 0:02:21]} Rgd8 {[%emt 0:00:37]} 36. Rxd8 {[%emt 0:03:31]} Rxd8 {[%emt 0:00:06]} 37. h6 {[%emt 0:01:55]} Rh8 {[%emt 0:03:17]} 38. h7 {[%emt 0:00:29]} Nc3 {[%emt 0:00:26]} 39. g4 {[%emt 0:02:20]} Na2 {[%emt 0:03:42]} 40. b5 {[%emt 0:02:03]} cxb5 {[%emt 0:01:23]} 41. Bd5 {[%emt 0:00:00]} Nb4 {[%emt 0:00:00]} 42. Bxf7 {[%emt 0:00:00]} Kd6 {[%emt 0:00:00]} 43. g5 {[%emt 0:00:00]} Ke7 {[%emt 0:00:00]} 44. Bg8 {[%emt 0:00:00]} 1-0